bitfinex/quotes_BTCUSD_20240623
["timestamp","ask_amount","ask_price","bid_price","bid_amount"]
[1719105920406,1.72748895,64511.0,64510.0,0.016935]
[1719105921855,2.74102424,64511.0,64510.0,0.016935]
[1719105922070,2.79596593,64511.0,64510.0,0.016935]
[1719105924768,2.7958007,64511.0,64510.0,0.016935]
[1719105927262,2.8595423,64511.0,64510.0,0.016935]
[1719105927803,2.85941219,64511.0,64510.0,0.016935]
[1719105928010,3.81620175,64511.0,64510.0,0.016935]
[1719105928248,3.81620175,64511.0,64506.0,0.000935]
[1719105928249,1.04579927,64507.0,64506.0,0.000935]
[1719105928433,1.73384799,64507.0,64506.0,0.000935]
[1719105928635,3.60121659,64507.0,64506.0,0.000935]
[1719105928846,3.67333459,64507.0,64506.0,0.000935]
[1719105929407,3.77175001,64507.0,64506.0,0.000935]
[1719105929803,3.68475774,64507.0,64506.0,0.000935]
[1719105930014,2.32909574,64507.0,64506.0,0.000935]
[1719105930208,2.29853374,64507.0,64506.0,0.001935]
[1719105930460,2.26232574,64507.0,64506.0,0.001935]
[1719105930666,2.09036572,64507.0,64506.0,0.001935]
[1719105930867,2.26215005,64507.0,64506.0,0.001935]
[1719105931387,2.22677419,64507.0,64506.0,0.001935]
[1719105931590,1.81483245,64507.0,64506.0,0.001935]
[1719105931881,1.20945245,64507.0,64506.0,0.001935]
[1719105932038,1.1676325,64507.0,64506.0,0.002935]
[1719105932656,1.1576325,64507.0,64506.0,0.001935]
[1719105932900,1.31018664,64507.0,64506.0,0.001935]
[1719105933089,1.51154764,64507.0,64506.0,0.002935]
[1719105933289,1.36958726,64507.0,64506.0,0.002935]
[1719105933528,0.8829295,64507.0,64506.0,0.001935]
[1719105933742,1.27292912,64507.0,64506.0,0.001935]
[1719105933913,1.3503682,64507.0,64506.0,0.001935]
[1719105934073,1.3603682,64507.0,64506.0,0.002935]
[1719105934494,1.3503682,64507.0,64506.0,0.001935]
[1719105934887,1.3593682,64507.0,64506.0,0.002935]
[1719105935470,1.3093682,64507.0,64506.0,0.002935]
[1719105936872,1.30929335,64507.0,64506.0,0.002935]
[1719105937279,1.30934005,64507.0,64506.0,0.002935]
[1719105937692,1.25744005,64507.0,64506.0,0.002935]
[1719105937904,1.16897905,64507.0,64506.0,0.002935]
[1719105938448,1.29283745,64507.0,64506.0,0.002935]
[1719105939677,1.25803699,64507.0,64506.0,0.002935]
[1719105939879,1.31267985,64507.0,64506.0,0.002935]
[1719105942960,1.25808204,64507.0,64506.0,0.002935]
[1719105943140,1.31272716,64507.0,64506.0,0.002935]
[1719105944566,1.18882516,64507.0,64506.0,0.002935]
[1719105944713,1.29014216,64507.0,64506.0,0.002935]
[1719105945848,1.29024603,64507.0,64506.0,0.002935]
[1719105946259,1.2901312,64507.0,64506.0,0.002935]
[1719105947453,1.2901225,64507.0,64506.0,0.002935]
[1719105948179,1.29012341,64507.0,64506.0,0.002935]
[1719105948970,1.21669032,64507.0,64506.0,0.002935]
[1719105949348,1.29029157,64507.0,64506.0,0.002935]
[1719105952115,1.21669032,64507.0,64506.0,0.002935]
[1719105952260,1.29027121,64507.0,64506.0,0.002935]
[1719105955118,1.21669032,64507.0,64506.0,0.002935]
[1719105955301,1.29030381,64507.0,64506.0,0.002935]
[1719105955509,1.21669032,64507.0,64506.0,0.002935]
[1719105955706,1.23549064,64507.0,64506.0,0.002935]
[1719105955962,1.29012779,64507.0,64506.0,0.002935]
[1719105956738,1.29014065,64507.0,64506.0,0.002935]
[1719105960767,1.21669032,64507.0,64506.0,0.002935]
[1719105960971,1.2903717,64507.0,64506.0,0.002935]
[1719105963686,1.21669032,64507.0,64506.0,0.002935]
[1719105963977,1.29039746,64507.0,64506.0,0.002935]
[1719105964110,1.29039872,64507.0,64506.0,0.002935]
[1719105965233,0.3658516,64507.0,64506.0,0.002935]
[1719105965445,0.11371868,64507.0,64506.0,0.39206673]
[1719105965649,0.25309965,64507.0,64506.0,0.72211473]
[1719105965820,0.03493508,64507.0,64506.0,0.72211473]
[1719105966239,0.03493508,64507.0,64506.0,0.70211473]
[1719105966381,0.02793508,64507.0,64506.0,0.70111473]
[1719105966586,0.01795546,64507.0,64506.0,0.70011473]
[1719105966904,0.13935417,64509.0,64506.0,0.32399073]
[1719105966905,0.01795557,64508.0,64506.0,0.32399073]
[1719105967241,0.13935417,64509.0,64508.0,0.38912673]
[1719105967372,0.01789613,64509.0,64508.0,0.38912673]
[1719105968010,0.14020417,64511.0,64510.0,0.62025073]
[1719105968268,0.01874495,64511.0,64510.0,1.00917973]
[1719105968493,0.01874495,64511.0,64510.0,1.02917973]
[1719105968739,0.13482163,64511.0,64510.0,1.02917973]
[1719105969339,0.01974495,64511.0,64510.0,1.02917973]
[1719105969545,0.00185,64511.0,64510.0,1.03317973]
[1719105969748,0.00085,64511.0,64510.0,1.03317973]
[1719105970062,0.01963538,64511.0,64510.0,1.03817973]
[1719105970467,0.11243804,64511.0,64510.0,1.03817973]
[1719105971466,0.01963538,64511.0,64510.0,1.03817973]
[1719105972313,0.08920256,64511.0,64510.0,1.03817973]
[1719105972511,0.07141392,64511.0,64510.0,1.03817973]
[1719105972713,0.0892103,64511.0,64510.0,1.03817973]
[1719105972996,0.00185,64511.0,64510.0,1.03817973]
[1719105973132,0.08920474,64511.0,64510.0,1.03817973]
[1719105974419,0.01964536,64511.0,64510.0,1.03817973]
[1719105975467,0.00185,64511.0,64510.0,1.03817973]
[1719105975667,0.01964291,64511.0,64510.0,1.03817973]
[1719105977304,0.06598516,64511.0,64510.0,1.03817973]
[1719105977630,0.01964291,64511.0,64510.0,1.03817973]
[1719105978240,0.06598659,64511.0,64510.0,1.03817973]
[1719105978607,0.06599582,64511.0,64510.0,1.03817973]
[1719105981705,0.04817798,64511.0,64510.0,1.03817973]
[1719105981940,0.0660101,64511.0,64510.0,1.03817973]
[1719105982274,0.01968212,64511.0,64510.0,1.03817973]
[1719105984819,0.01956576,64511.0,64510.0,1.03817973]
[1719105985749,0.01956576,64511.0,64510.0,1.01817973]
[1719105986019,0.01956576,64511.0,64510.0,1.03817973]
[1719105987738,0.01923152,64511.0,64510.0,1.01817973]
[1719105988571,0.01923152,64511.0,64510.0,1.03817973]
[1719105990855,0.01921961,64511.0,64510.0,1.03817973]
[1719105990980,0.00185,64511.0,64510.0,1.03817973]
[1719105991183,0.01921974,64511.0,64510.0,1.03817973]
[1719105992435,0.01921974,64511.0,64510.0,1.01817973]
[1719105992837,0.01921974,64511.0,64510.0,1.03817973]
[1719105993437,0.01921974,64511.0,64510.0,1.01817973]
[1719105993662,0.00185,64511.0,64510.0,1.03817973]
[1719105994092,0.01921335,64511.0,64510.0,1.03817973]
[1719105994298,0.01921335,64511.0,64510.0,1.01817973]
[1719105996769,0.01917177,64511.0,64510.0,1.01817973]
[1719105999854,0.01915522,64511.0,64510.0,1.01817973]
[1719106000259,0.01915523,64511.0,64510.0,1.01817973]
[1719106000658,0.01915523,64511.0,64510.0,1.03817973]
[1719106001358,0.01916015,64511.0,64510.0,1.03817973]
[1719106002362,0.06550585,64511.0,64510.0,1.03817973]
[1719106002880,0.01920718,64511.0,64510.0,1.03817973]
[1719106003081,0.06556524,64511.0,64510.0,1.11817973]
[1719106003477,0.06556524,64511.0,64510.0,1.42820873]
[1719106004724,0.01920718,64511.0,64510.0,1.42820873]
[1719106005475,0.08874428,64511.0,64510.0,1.42820873]
[1719106005675,0.0713871,64511.0,64510.0,1.42820873]
[1719106005901,0.01927163,64511.0,64510.0,1.42820873]
[1719106006334,0.08884998,64511.0,64510.0,1.42820873]
[1719106006563,0.01927163,64511.0,64510.0,1.42820873]
[1719106007307,0.08884998,64511.0,64510.0,1.42820873]
[1719106007505,0.01927163,64511.0,64510.0,1.42820873]
[1719106007858,0.08884998,64511.0,64510.0,1.58076985]
[1719106008044,0.01927163,64511.0,64510.0,1.58076985]
[1719106008255,0.01915971,64511.0,64510.0,1.58076985]
[1719106009108,0.00185,64511.0,64510.0,1.58076985]
[1719106009548,0.00185,64511.0,64510.0,1.78076985]
[1719106009965,0.00085,64511.0,64510.0,1.77576985]
[1719106010365,0.00185,64511.0,64510.0,1.77976985]
[1719106010700,0.00185,64511.0,64510.0,2.18879885]
[1719106010921,0.00085,64511.0,64510.0,2.28179885]
[1719106011124,0.00185,64511.0,64510.0,2.28979885]
[1719106012476,0.00185,64511.0,64510.0,2.30379885]
[1719106019631,0.00185,64511.0,64510.0,2.40379885]
[1719106019792,0.00185,64511.0,64510.0,2.42679885]
[1719106020549,0.00185,64511.0,64510.0,2.22679885]
[1719106020726,0.00185,64511.0,64510.0,2.27869885]
[1719106020942,0.00185,64511.0,64510.0,1.79376985]
[1719106021138,0.00185,64511.0,64510.0,1.84566985]
[1719106024589,0.00185,64511.0,64510.0,1.79376985]
[1719106024777,0.00185,64511.0,64510.0,1.84566985]
[1719106026260,0.00185,64511.0,64510.0,1.74566985]
[1719106026464,0.00185,64511.0,64510.0,1.84566985]
[1719106031545,0.00185,64511.0,64510.0,1.74566985]
[1719106031771,0.00185,64511.0,64510.0,1.84566985]
[1719106032396,0.00185,64511.0,64510.0,1.57266985]
[1719106032570,0.00185,64511.0,64510.0,1.74406985]
[1719106033032,0.00185,64511.0,64510.0,1.84766985]
[1719106033540,0.01717732,64511.0,64510.0,1.84766985]
[1719106034672,0.01717732,64511.0,64510.0,2.04766985]
[1719106035600,0.00185,64511.0,64510.0,2.04766985]
[1719106036443,0.0179615,64511.0,64510.0,1.84766985]
[1719106037240,0.01790026,64511.0,64510.0,1.84766985]
[1719106038609,0.0519,64530.0,64521.0,0.309974]
[1719106038819,0.13930897,64524.0,64523.0,0.01300773]
[1719106038980,0.20747937,64524.0,64523.0,0.01300773]
[1719106039182,0.0681704,64524.0,64523.0,0.01300773]
[1719106039967,0.0681704,64524.0,64523.0,0.16798973]
[1719106040566,0.0681704,64524.0,64523.0,0.16898973]
[1719106041324,0.20747937,64524.0,64523.0,0.16898973]
[1719106041741,0.22629901,64524.0,64523.0,0.16898973]
[1719106044676,0.0186,64524.0,64523.0,0.16898973]
[1719106044874,0.21003245,64524.0,64523.0,0.16898973]
[1719106045076,0.0186,64524.0,64523.0,0.16898973]
[1719106045257,0.20958647,64524.0,64523.0,0.16898973]
[1719106045460,0.22523421,64524.0,64523.0,0.16898973]
[1719106045659,0.08589498,64524.0,64523.0,0.01400773]
[1719106047143,0.08484093,64524.0,64523.0,0.01400773]
[1719106047564,0.06973306,64524.0,64523.0,0.01400773]
[1719106047831,0.08484095,64524.0,64523.0,0.01400773]
[1719106050730,0.08490612,64524.0,64523.0,0.01400773]
[1719106053653,0.08496904,64524.0,64523.0,0.01400773]
[1719106054145,0.08527696,64524.0,64523.0,0.01400773]
[1719106056533,0.06667696,64524.0,64523.0,0.16899073]
[1719106056688,0.05155632,64524.0,64523.0,0.16899073]
[1719106056889,0.01554951,64524.0,64523.0,0.16899073]
[1719106057113,0.06710583,64524.0,64523.0,0.16899073]
[1719106057804,0.01554951,64524.0,64523.0,0.16899073]
[1719106057986,0.06710583,64524.0,64523.0,0.16899073]
[1719106059637,0.01554951,64524.0,64523.0,0.16899073]
[1719106059840,0.01591408,64524.0,64523.0,0.16899073]
[1719106060059,0.06781782,64524.0,64523.0,0.16899073]
[1719106060259,0.01591408,64524.0,64523.0,0.16899073]
[1719106060491,0.06781782,64524.0,64523.0,0.16899073]
[1719106060844,0.0185,64526.0,64523.0,0.16899073]
[1719106061043,0.06804925,64525.0,64524.0,0.01300773]
[1719106063036,0.0185,64526.0,64524.0,0.01300773]
[1719106063236,0.1774481,64526.0,64525.0,0.01300773]
[1719106063448,0.22949241,64526.0,64525.0,0.01300773]
[1719106063657,0.24553867,64526.0,64525.0,0.01300773]
[1719106063857,0.08857996,64526.0,64525.0,0.01300773]
[1719106064723,0.24753496,64526.0,64525.0,0.01300773]
[1719106064950,0.24553496,64526.0,64525.0,0.01300773]
[1719106066096,0.0225,64526.0,64525.0,0.01300773]
[1719106066472,0.19547358,64526.0,64525.0,0.01300773]
[1719106066675,0.24744698,64526.0,64525.0,0.01300773]
[1719106067174,0.24544698,64526.0,64525.0,0.01300773]
[1719106067705,0.24744698,64526.0,64525.0,0.01300773]
[1719106067894,0.24544698,64526.0,64525.0,0.01300773]
[1719106068094,0.24344698,64526.0,64525.0,0.01300773]
[1719106068299,0.22694698,64526.0,64525.0,0.01300773]
[1719106068662,0.15899084,64526.0,64525.0,0.01300773]
[1719106068865,0.15699084,64526.0,64525.0,0.01600773]
[1719106069071,0.15699084,64526.0,64525.0,0.02000773]
[1719106069270,0.15699084,64526.0,64525.0,0.17498573]
[1719106069746,0.15699084,64526.0,64525.0,0.17098573]
[1719106069857,0.01913709,64527.0,64525.0,0.17098573]
[1719106070069,0.00085,64528.0,64525.0,0.17498573]
[1719106070473,0.00085,64528.0,64525.0,0.17198573]
[1719106070674,0.00085,64528.0,64525.0,0.17498573]
[1719106071336,0.00085,64528.0,64525.0,0.17198573]
[1719106071685,0.06938037,64526.0,64525.0,0.17198573]
[1719106071891,0.00085,64528.0,64526.0,0.154976]
[1719106072489,0.00085,64528.0,64527.0,0.47792773]
[1719106073923,0.00085,64528.0,64527.0,0.47892773]
[1719106074743,0.00085,64528.0,64527.0,0.48692773]
[1719106075168,0.00085,64528.0,64527.0,0.48592773]
[1719106075554,0.00185,64528.0,64527.0,0.49492773]
[1719106076782,0.01792819,64528.0,64527.0,0.49492773]
[1719106077398,0.00185,64528.0,64527.0,0.49492773]
[1719106077657,0.00185,64528.0,64527.0,0.48692773]
[1719106077847,0.01795558,64528.0,64527.0,0.48692773]
[1719106078046,0.00185,64528.0,64527.0,0.49592773]
[1719106078299,0.01795558,64528.0,64527.0,0.49592773]
[1719106078495,0.01695558,64528.0,64527.0,0.47792773]
[1719106078616,0.01795558,64528.0,64527.0,0.48792773]
[1719106079247,0.01695558,64528.0,64527.0,0.48592773]
[1719106079446,0.01695558,64528.0,64527.0,0.49492773]
[1719106079447,0.01795558,64528.0,64527.0,0.49492773]
[1719106080762,0.00185,64528.0,64527.0,0.48692773]
[1719106080890,0.00185,64528.0,64527.0,0.49492773]
[1719106081088,0.01797014,64528.0,64527.0,0.49492773]
[1719106082518,0.15738746,64528.0,64527.0,0.49492773]
[1719106083152,0.01797014,64528.0,64527.0,0.49492773]
[1719106083640,0.15719845,64528.0,64527.0,0.49492773]
[1719106086658,0.1572538,64528.0,64527.0,0.49492773]
[1719106087060,0.15725374,64528.0,64527.0,0.49492773]
[1719106088981,0.15725374,64528.0,64527.0,0.18498073]
[1719106089277,0.15725374,64528.0,64527.0,0.017]
[1719106089278,0.31222474,64528.0,64527.0,0.017]
[1719106089438,0.08705703,64528.0,64527.0,0.017]
[1719106089639,0.01905,64528.0,64527.0,0.017]
[1719106089839,0.0870778,64528.0,64527.0,0.017]
[1719106091439,0.0698778,64528.0,64527.0,0.017]
[1719106091631,0.01787162,64528.0,64527.0,0.017]
[1719106091808,0.07124071,64528.0,64527.0,0.017]
[1719106092836,0.07267377,64528.0,64527.0,0.017]
[1719106095685,0.00185,64528.0,64527.0,0.017]
[1719106095889,0.01952656,64528.0,64527.0,0.017]
[1719106096092,0.12670351,64528.0,64527.0,0.017]
[1719106096383,0.07312345,64528.0,64527.0,0.017]
[1719106097181,0.00185,64528.0,64527.0,0.017]
[1719106097383,0.01953835,64528.0,64527.0,0.017]
[1719106097608,0.07313012,64528.0,64527.0,0.017]
[1719106098034,0.07313012,64528.0,64527.0,0.1459]
[1719106098848,0.07316557,64528.0,64527.0,0.1459]
[1719106099016,0.07313809,64528.0,64527.0,0.1459]
[1719106102052,0.07313809,64528.0,64527.0,0.300873]
[1719106103134,0.07313809,64528.0,64527.0,0.18498073]
[1719106103476,0.07313809,64528.0,64527.0,0.61532773]
[1719106104920,0.05554085,64528.0,64527.0,0.61532773]
[1719106105255,0.00185,64528.0,64527.0,0.61532773]
[1719106105455,0.01964369,64528.0,64527.0,0.61532773]
[1719106105871,0.07333411,64528.0,64527.0,0.61532773]
[1719106106616,0.07334914,64528.0,64527.0,0.61532773]
[1719106107924,0.07338034,64528.0,64527.0,0.61532773]
[1719106110895,0.00185,64528.0,64527.0,0.61532773]
[1719106111098,0.01968828,64528.0,64527.0,0.61532773]
[1719106111335,0.07342117,64528.0,64527.0,0.61532773]
[1719106113969,0.00185,64528.0,64527.0,0.61532773]
[1719106114131,0.07286207,64528.0,64527.0,0.61532773]
[1719106114332,0.07286207,64528.0,64527.0,0.30538073]
[1719106114333,0.00185,64528.0,64527.0,0.30538073]
[1719106114558,0.01927708,64528.0,64527.0,0.30538073]
[1719106114775,0.07261857,64528.0,64527.0,0.30538073]
[1719106117158,0.07285388,64528.0,64527.0,0.30538073]
[1719106119005,0.07285388,64528.0,64527.0,0.15040773]
[1719106119206,0.07285388,64528.0,64527.0,0.03000773]
[1719106120018,0.23792488,64528.0,64527.0,0.03000773]
[1719106120193,0.39356833,64528.0,64527.0,0.03000773]
[1719106121228,1.01345233,64528.0,64527.0,0.017]
[1719106122460,0.85656493,64528.0,64527.0,0.017]
[1719106123184,0.2790592,64528.0,64527.0,0.017]
[1719106123595,0.26205795,64528.0,64527.0,0.017]
[1719106123739,0.27948306,64528.0,64527.0,0.017]
[1719106126194,0.27939733,64528.0,64527.0,0.017]
[1719106126548,0.43626461,64528.0,64527.0,0.017]
[1719106127796,0.38436461,64528.0,64527.0,0.017]
[1719106128000,0.27939733,64528.0,64527.0,0.017]
[1719106128203,0.43625934,64528.0,64527.0,0.017]
[1719106128609,0.27939733,64528.0,64527.0,0.017]
[1719106129158,0.27923463,64528.0,64527.0,0.017]
[1719106129358,0.43609233,64528.0,64527.0,0.017]
[1719106129664,0.12426363,64528.0,64527.0,0.017]
[1719106129863,0.07236363,64528.0,64527.0,0.017]
[1719106131077,0.07236363,64528.0,64527.0,0.40228073]
[1719106131278,0.07236363,64528.0,64527.0,0.71222773]
[1719106131717,0.00185,64528.0,64527.0,0.71222773]
[1719106131886,0.07239484,64528.0,64527.0,0.71222773]
[1719106132461,0.07240582,64528.0,64527.0,0.71222773]
[1719106132868,0.07240594,64528.0,64527.0,0.71222773]
[1719106134046,0.07240898,64528.0,64527.0,0.71222773]
[1719106135407,0.07225906,64528.0,64527.0,0.71222773]
[1719106138423,0.0715684,64528.0,64527.0,0.71222773]
[1719106139954,0.0715684,64528.0,64527.0,0.40228073]
[1719106140950,0.0715684,64528.0,64527.0,0.30778073]
[1719106140951,0.00185,64528.0,64527.0,0.30778073]
[1719106141153,0.0709648,64528.0,64527.0,0.30778073]
[1719106141327,0.07087502,64528.0,64527.0,0.30778073]
[1719106141734,0.07087502,64528.0,64527.0,0.15280773]
[1719106141901,0.22775163,64528.0,64527.0,0.15280773]
[1719106142570,0.22816222,64528.0,64527.0,0.15280773]
[1719106143181,0.07128939,64528.0,64527.0,0.15280773]
[1719106143403,0.22816097,64528.0,64527.0,0.15280773]
[1719106143825,0.22816084,64528.0,64527.0,0.15280773]
[1719106144798,0.07128939,64528.0,64527.0,0.15280773]
[1719106146633,0.22812439,64528.0,64527.0,0.15280773]
[1719106146837,0.07277128,64528.0,64527.0,0.15280773]
[1719106149734,0.0712994,64528.0,64527.0,0.15280773]
[1719106150219,0.00185,64528.0,64527.0,0.15280773]
[1719106150522,0.01860315,64528.0,64527.0,0.15280773]
[1719106150650,0.07129962,64528.0,64527.0,0.15280773]
[1719106155888,0.07237062,64528.0,64527.0,0.15280773]
[1719106159047,0.07214404,64528.0,64527.0,0.15280773]
[1719106159300,0.00185,64528.0,64527.0,0.15280773]
[1719106159419,0.07214418,64528.0,64527.0,0.15280773]
[1719106160568,0.07114056,64528.0,64527.0,0.15280773]
[1719106161355,1.0028556,64528.0,64527.0,0.017]
[1719106161808,0.776705,64528.0,64527.0,0.017]
[1719106161957,1.00177499,64528.0,64527.0,0.017]
[1719106162905,0.84491966,64528.0,64527.0,0.017]
[1719106165016,0.776705,64528.0,64527.0,0.017]
[1719106165218,0.8453339,64528.0,64527.0,0.017]
[1719106167944,0.776705,64528.0,64527.0,0.017]
[1719106168162,0.844859,64528.0,64527.0,0.017]
[1719106168558,0.8442238,64528.0,64527.0,0.017]
[1719106169212,1.53742692,64528.0,64527.0,0.017]
[1719106169562,2.29992306,64528.0,64527.0,0.017]
[1719106169732,2.22836267,64528.0,64527.0,0.017]
[1719106170001,2.45701903,64528.0,64527.0,0.017]
[1719106170221,2.45601903,64528.0,64527.0,0.008]
[1719106170449,1.104867,64524.0,64523.0,0.000935]
[1719106170684,5.29853424,64524.0,64523.0,0.000935]
[1719106170923,5.21593312,64524.0,64523.0,0.000935]
[1719106171193,5.89640162,64524.0,64523.0,0.000935]
[1719106171451,5.89640162,64524.0,64508.0,0.01300773]
[1719106171452,0.465051,64509.0,64508.0,0.01300773]
[1719106171701,0.6013065,64509.0,64508.0,0.01300773]
[1719106173641,0.74042766,64509.0,64508.0,0.01300773]
[1719106173876,0.516951,64509.0,64508.0,0.01700773]
[1719106174107,0.60115427,64509.0,64508.0,0.01700773]
[1719106174328,0.60115427,64509.0,64508.0,0.02000773]
[1719106174565,0.54126709,64509.0,64508.0,0.02000773]
[1719106174805,0.74010421,64509.0,64508.0,0.02000773]
[1719106175315,0.60098374,64509.0,64508.0,0.02000773]
[1719106175546,0.54126709,64509.0,64508.0,0.02000773]
[1719106176929,0.54118757,64509.0,64508.0,0.02000773]
[1719106177451,0.54118756,64509.0,64508.0,0.02000773]
[1719106178569,0.54118415,64509.0,64508.0,0.02000773]
[1719106179960,0.54118946,64509.0,64508.0,0.02000773]
[1719106180211,0.17925546,64509.0,64508.0,0.02000773]
[1719106180417,0.29502121,64509.0,64508.0,0.02000773]
[1719106180623,0.17925546,64509.0,64508.0,0.23920773]
[1719106182837,0.155017,64509.0,64508.0,0.23920773]
[1719106183048,0.17898157,64509.0,64508.0,0.23920773]
[1719106184954,0.39803692,64511.0,64508.0,0.23920773]
[1719106185171,0.0519,64509.0,64508.0,0.23920773]
[1719106185925,0.0519,64509.0,64508.0,0.23520773]
[1719106186337,0.0519,64509.0,64508.0,0.23620773]
[1719106186549,0.14448318,64509.0,64508.0,0.23620773]
[1719106186745,0.0519,64509.0,64508.0,0.23520773]
[1719106187299,0.14448318,64509.0,64508.0,0.23920773]
[1719106189102,0.14447869,64509.0,64508.0,0.23920773]
[1719106189455,0.09257869,64509.0,64508.0,0.23920773]
[1719106189866,0.09257728,64509.0,64508.0,0.23920773]
[1719106190626,0.14447728,64510.0,64508.0,0.23920773]
[1719106190833,0.09257728,64510.0,64509.0,0.69045873]
[1719106191221,0.06943407,64511.0,64510.0,0.68795073]
[1719106191417,0.154995,64518.0,64511.0,0.37791973]
[1719106191418,0.06943407,64512.0,64511.0,0.37791973]
[1719106191958,0.11572751,64516.0,64515.0,0.2099]
[1719106192162,0.11572843,64516.0,64515.0,0.2099]
[1719106192769,0.11572843,64516.0,64515.0,0.01300773]
[1719106192971,0.11572843,64516.0,64515.0,0.22290773]
[1719106194014,0.12072843,64516.0,64515.0,0.37790973]
[1719106194961,0.14182832,64516.0,64515.0,0.37790973]
[1719106195156,0.14782832,64516.0,64515.0,0.37890973]
[1719106195295,0.02609997,64516.0,64515.0,0.37790973]
[1719106195539,0.17257326,64516.0,64515.0,0.37790973]
[1719106195959,0.1932833,64516.0,64515.0,0.37990973]
[1719106197037,0.1928096,64516.0,64515.0,0.37990973]
[1719106197255,0.07704849,64516.0,64515.0,0.37990973]
[1719106198132,0.07704849,64516.0,64515.0,0.38190973]
[1719106198133,0.1928192,64516.0,64515.0,0.38190973]
[1719106198332,0.07704849,64516.0,64515.0,0.38190973]
[1719106198578,0.0519,64517.0,64515.0,0.38190973]
[1719106198746,0.07753165,64516.0,64515.0,0.38190973]
[1719106199571,0.07753165,64516.0,64515.0,0.22690773]
[1719106200987,0.0519,64517.0,64515.0,0.22690773]
[1719106201188,0.07700241,64516.0,64515.0,0.22690773]
[1719106202127,0.07700241,64516.0,64515.0,0.22290773]
[1719106202327,0.07700241,64516.0,64515.0,0.22390773]
[1719106202886,0.07700241,64516.0,64515.0,0.22290773]
[1719106203087,0.07700241,64516.0,64515.0,0.22685137]
[1719106203685,0.05637683,64516.0,64515.0,0.22685137]
[1719106203887,0.07699741,64516.0,64515.0,0.22685137]
[1719106204115,0.0519,64517.0,64515.0,0.22685137]
[1719106204327,0.07699741,64516.0,64515.0,0.22685137]
[1719106205353,0.0519,64517.0,64516.0,0.01295137]
[1719106205556,0.12925776,64517.0,64516.0,0.01295137]
[1719106206567,0.12925776,64517.0,64516.0,0.01395137]
[1719106207034,0.12897659,64517.0,64516.0,0.01395137]
[1719106207385,0.12897644,64517.0,64516.0,0.01395137]
[1719106209518,0.26806017,64517.0,64516.0,0.01395137]
[1719106210059,0.19104063,64517.0,64516.0,0.01395137]
[1719106210245,0.19104063,64517.0,64516.0,0.13155137]
[1719106210246,0.21635378,64517.0,64516.0,0.13155137]
[1719106210524,0.21635378,64517.0,64516.0,0.22885137]
[1719106211736,0.21635378,64517.0,64516.0,0.38385137]
[1719106211944,0.07721315,64517.0,64516.0,0.71385137]
[1719106212091,0.07721315,64517.0,64516.0,1.00385137]
[1719106212288,0.00085,64523.0,64516.0,1.00385137]
[1719106212289,0.00085,64523.0,64521.0,0.16793837]
[1719106212489,0.07770648,64522.0,64521.0,0.38283837]
[1719106213109,0.07773075,64522.0,64521.0,0.38283837]
[1719106213309,0.00085,64523.0,64521.0,0.26523837]
[1719106213452,0.07772944,64522.0,64521.0,0.26623837]
[1719106213652,0.07772944,64522.0,64521.0,0.57621437]
[1719106213855,0.21694392,64522.0,64521.0,0.69381437]
[1719106214476,0.21695508,64522.0,64521.0,0.69381437]
[1719106214861,0.02099811,64522.0,64521.0,0.69281437]
[1719106214993,0.02699811,64522.0,64521.0,0.69381437]
[1719106215394,0.02699811,64522.0,64521.0,1.02379037]
[1719106215934,0.14277781,64522.0,64521.0,1.02379037]
[1719106216150,0.14777781,64522.0,64521.0,1.02379037]
[1719106216751,0.14277781,64522.0,64521.0,1.02379037]
[1719106216976,0.02676273,64522.0,64521.0,1.02379037]
[1719106217181,0.11953632,64522.0,64521.0,1.02779037]
[1719106217512,0.11953632,64522.0,64521.0,1.33776637]
[1719106217728,0.11353632,64522.0,64521.0,1.33276637]
[1719106217974,0.11453632,64522.0,64521.0,1.34176637]
[1719106218129,0.02176273,64522.0,64521.0,1.34476637]
[1719106218534,0.02176273,64522.0,64521.0,1.34176637]
[1719106218833,0.02210957,64522.0,64521.0,1.34976637]
[1719106219248,0.09166556,64522.0,64521.0,1.34176637]
[1719106219445,0.09066556,64522.0,64521.0,1.33276637]
[1719106219646,0.09166556,64522.0,64521.0,1.35476637]
[1719106220268,0.06747798,64522.0,64521.0,1.34576637]
[1719106220482,0.02110957,64522.0,64521.0,1.35976637]
[1719106220683,0.02210957,64522.0,64521.0,1.71232749]
[1719106221134,0.02210957,64522.0,64521.0,1.49932749]
[1719106221257,0.001,64522.0,64521.0,1.49932749]
[1719106221464,0.001,64522.0,64521.0,1.51332749]
[1719106227777,0.001,64522.0,64521.0,1.56522749]
[1719106229425,0.001,64522.0,64521.0,1.54522749]
[1719106229619,0.001,64522.0,64521.0,1.56522749]
[1719106229818,0.001,64522.0,64521.0,1.54522749]
[1719106230019,0.001,64522.0,64521.0,1.56522749]
[1719106233135,0.001,64522.0,64521.0,1.54522749]
[1719106237160,0.02181912,64522.0,64521.0,1.54522749]
[1719106237625,0.02181912,64522.0,64521.0,1.56522749]
[1719106238037,0.02181912,64522.0,64521.0,1.54522749]
[1719106238459,0.02181912,64522.0,64521.0,1.56522749]
[1719106239921,0.001,64522.0,64521.0,1.56522749]
[1719106240781,0.02178168,64522.0,64521.0,1.56522749]
[1719106241509,0.02177754,64522.0,64521.0,1.56522749]
[1719106243134,0.001,64522.0,64521.0,1.56522749]
[1719106243563,0.02165574,64522.0,64521.0,1.56522749]
[1719106243831,0.02165574,64522.0,64521.0,1.51332749]
[1719106244093,0.001,64522.0,64521.0,1.51332749]
[1719106244291,0.02167441,64522.0,64521.0,1.51332749]
[1719106244422,0.02167441,64522.0,64521.0,1.18335149]
[1719106244624,0.02167441,64522.0,64521.0,1.20335149]
[1719106245050,0.02167441,64522.0,64521.0,0.04095137]
[1719106245211,0.02167441,64522.0,64521.0,0.19593937]
[1719106245429,0.02167441,64522.0,64521.0,0.50591537]
[1719106246119,0.001,64522.0,64521.0,0.50591537]
[1719106246340,0.02064318,64522.0,64521.0,0.19593937]
[1719106249005,0.02064318,64522.0,64521.0,0.50591537]
[1719106249174,0.001,64522.0,64521.0,0.50591537]
[1719106249378,0.04734705,64522.0,64521.0,0.50591537]
[1719106249573,0.06695256,64522.0,64521.0,0.50591537]
[1719106252122,0.02049026,64522.0,64521.0,0.50591537]
[1719106253182,0.09003329,64522.0,64521.0,0.50591537]
[1719106254032,0.09088329,64522.0,64521.0,0.50591537]
[1719106255243,0.02134026,64522.0,64521.0,0.50591537]
[1719106255505,0.00185,64522.0,64521.0,0.50591537]
[1719106255663,0.02146644,64522.0,64521.0,0.50591537]
[1719106256265,0.11425174,64522.0,64521.0,0.50591537]
[1719106257067,0.11425174,64522.0,64521.0,0.52591537]
[1719106257289,0.11425174,64522.0,64521.0,0.64381537]